{"text_format":"3","workbook":"xlsx","n_sheets":5,"sheets":["Informe de ventas del producto ","Datos históricos","Lista de precios","Nivel de precios tabla dinámica","Tabla dinámica evolución ventas"],"not_rendered":{"charts":2,"defined_names":6,"pivot_tables":2},"read":"whole","date_system":"1900"}

{"sheet":"Informe de ventas del producto ","index":0,"n_rows":20,"n_cols":2,"rows_kept":20}
[null,"Informe de ventas del producto"]
{"$rows_empty":18}
[null," Productos"]

{"sheet":"Datos históricos","index":1,"n_rows":33,"n_cols":10,"rows_kept":33}
[null,"Historial de lista de precios y de ventas"]
[]
[null,"Identificador de producto","Nombre de producto","Fecha de precio","Precio de venta minorista por unidad","Precio de venta al mayor por unidad*","Unidades vendidas (minorista)","Unidades vendidas (mayorista)","Total de ventas (Número)","Total de ventas (EUR)"]
[null,5,{"$f":"IFERROR(IF(tblVentas[[#This Row],[Identificador de producto]]<>\"\",VLOOKUP(tblVentas[Identificador de producto],tblProductos[[Identificador de producto]:[Nombre]],2,FALSE),\"\"),\"Unknown Product ID\")","v":"Pantalón corto"},"2012-01-01",20,{"v":20,"d":"20.00 €"},629,{"v":1254,"d":"1,254"},{"$f":"tblVentas[[#This Row],[Unidades vendidas (minorista)]]+tblVentas[[#This Row],[Unidades vendidas (mayorista)]]","v":{"v":1883,"d":"1,883"}},{"$f":"tblVentas[[#This Row],[Unidades vendidas (minorista)]]*tblVentas[[#This Row],[Precio de venta minorista por unidad]]+tblVentas[[#This Row],[Unidades vendidas (mayorista)]]*tblVentas[[#This Row],[Precio de venta al mayor por unidad*]]","v":{"v":37660,"d":"37,660 €"}}]
[null,1,{"$f":"IFERROR(IF(tblVentas[[#This Row],[Identificador de producto]]<>\"\",VLOOKUP(tblVentas[Identificador de producto],tblProductos[[Identificador de producto]:[Nombre]],2,FALSE),\"\"),\"Unknown Product ID\")","v":"Camisetas"},"2012-01-01",88,{"v":54,"d":"54.00 €"},734,{"v":1427,"d":"1,427"},{"$f":"tblVentas[[#This Row],[Unidades vendidas (minorista)]]+tblVentas[[#This Row],[Unidades vendidas (mayorista)]]","v":{"v":2161,"d":"2,161"}},{"$f":"tblVentas[[#This Row],[Unidades vendidas (minorista)]]*tblVentas[[#This Row],[Precio de venta minorista por unidad]]+tblVentas[[#This Row],[Unidades vendidas (mayorista)]]*tblVentas[[#This Row],[Precio de venta al mayor por unidad*]]","v":{"v":141650,"d":"141,650 €"}}]
[null,2,{"$f":"IFERROR(IF(tblVentas[[#This Row],[Identificador de producto]]<>\"\",VLOOKUP(tblVentas[Identificador de producto],tblProductos[[Identificador de producto]:[Nombre]],2,FALSE),\"\"),\"Unknown Product ID\")","v":"Sandalias"},"2012-01-01",70,{"v":44,"d":"44.00 €"},744,{"v":1043,"d":"1,043"},{"$f":"tblVentas[[#This Row],[Unidades vendidas (minorista)]]+tblVentas[[#This Row],[Unidades vendidas (mayorista)]]","v":{"v":1787,"d":"1,787"}},{"$f":"tblVentas[[#This Row],[Unidades vendidas (minorista)]]*tblVentas[[#This Row],[Precio de venta minorista por unidad]]+tblVentas[[#This Row],[Unidades vendidas (mayorista)]]*tblVentas[[#This Row],[Precio de venta al mayor por unidad*]]","v":{"v":97972,"d":"97,972 €"}}]
[null,3,{"$f":"IFERROR(IF(tblVentas[[#This Row],[Identificador de producto]]<>\"\",VLOOKUP(tblVentas[Identificador de producto],tblProductos[[Identificador de producto]:[Nombre]],2,FALSE),\"\"),\"Unknown Product ID\")","v":"Paraguas"},"2012-01-01",63,{"v":44,"d":"44.00 €"},681,{"v":1523,"d":"1,523"},{"$f":"tblVentas[[#This Row],[Unidades vendidas (minorista)]]+tblVentas[[#This Row],[Unidades vendidas (mayorista)]]","v":{"v":2204,"d":"2,204"}},{"$f":"tblVentas[[#This Row],[Unidades vendidas (minorista)]]*tblVentas[[#This Row],[Precio de venta minorista por unidad]]+tblVentas[[#This Row],[Unidades vendidas (mayorista)]]*tblVentas[[#This Row],[Precio de venta al mayor por unidad*]]","v":{"v":109915,"d":"109,915 €"}}]
[null,4,{"$f":"IFERROR(IF(tblVentas[[#This Row],[Identificador de producto]]<>\"\",VLOOKUP(tblVentas[Identificador de producto],tblProductos[[Identificador de producto]:[Nombre]],2,FALSE),\"\"),\"Unknown Product ID\")","v":"Botellas de agua"},"2012-01-01",35,{"v":27,"d":"27.00 €"},602,{"v":1822,"d":"1,822"},{"$f":"tblVentas[[#This Row],[Unidades vendidas (minorista)]]+tblVentas[[#This Row],[Unidades vendidas (mayorista)]]","v":{"v":2424,"d":"2,424"}},{"$f":"tblVentas[[#This Row],[Unidades vendidas (minorista)]]*tblVentas[[#This Row],[Precio de venta minorista por unidad]]+tblVentas[[#This Row],[Unidades vendidas (mayorista)]]*tblVentas[[#This Row],[Precio de venta al mayor por unidad*]]","v":{"v":70264,"d":"70,264 €"}}]
[null,1,{"$f":"IFERROR(IF(tblVentas[[#This Row],[Identificador de producto]]<>\"\",VLOOKUP(tblVentas[Identificador de producto],tblProductos[[Identificador de producto]:[Nombre]],2,FALSE),\"\"),\"Unknown Product ID\")","v":"Camisetas"},"2012-02-01",55,{"v":44,"d":"44.00 €"},678,{"v":1515,"d":"1,515"},{"$f":"tblVentas[[#This Row],[Unidades vendidas (minorista)]]+tblVentas[[#This Row],[Unidades vendidas (mayorista)]]","v":{"v":2193,"d":"2,193"}},{"$f":"tblVentas[[#This Row],[Unidades vendidas (minorista)]]*tblVentas[[#This Row],[Precio de venta minorista por unidad]]+tblVentas[[#This Row],[Unidades vendidas (mayorista)]]*tblVentas[[#This Row],[Precio de venta al mayor por unidad*]]","v":{"v":103950,"d":"103,950 €"}}]
[null,2,{"$f":"IFERROR(IF(tblVentas[[#This Row],[Identificador de producto]]<>\"\",VLOOKUP(tblVentas[Identificador de producto],tblProductos[[Identificador de producto]:[Nombre]],2,FALSE),\"\"),\"Unknown Product ID\")","v":"Sandalias"},"2012-02-01",83,{"v":54,"d":"54.00 €"},753,{"v":1005,"d":"1,005"},{"$f":"tblVentas[[#This Row],[Unidades vendidas (minorista)]]+tblVentas[[#This Row],[Unidades vendidas (mayorista)]]","v":{"v":1758,"d":"1,758"}},{"$f":"tblVentas[[#This Row],[Unidades vendidas (minorista)]]*tblVentas[[#This Row],[Precio de venta minorista por unidad]]+tblVentas[[#This Row],[Unidades vendidas (mayorista)]]*tblVentas[[#This Row],[Precio de venta al mayor por unidad*]]","v":{"v":116769,"d":"116,769 €"}}]
[null,3,{"$f":"IFERROR(IF(tblVentas[[#This Row],[Identificador de producto]]<>\"\",VLOOKUP(tblVentas[Identificador de producto],tblProductos[[Identificador de producto]:[Nombre]],2,FALSE),\"\"),\"Unknown Product ID\")","v":"Paraguas"},"2012-02-01",34,{"v":34,"d":"34.00 €"},986,{"v":1069,"d":"1,069"},{"$f":"tblVentas[[#This Row],[Unidades vendidas (minorista)]]+tblVentas[[#This Row],[Unidades vendidas (mayorista)]]","v":{"v":2055,"d":"2,055"}},{"$f":"tblVentas[[#This Row],[Unidades vendidas (minorista)]]*tblVentas[[#This Row],[Precio de venta minorista por unidad]]+tblVentas[[#This Row],[Unidades vendidas (mayorista)]]*tblVentas[[#This Row],[Precio de venta al mayor por unidad*]]","v":{"v":69870,"d":"69,870 €"}}]
[null,4,{"$f":"IFERROR(IF(tblVentas[[#This Row],[Identificador de producto]]<>\"\",VLOOKUP(tblVentas[Identificador de producto],tblProductos[[Identificador de producto]:[Nombre]],2,FALSE),\"\"),\"Unknown Product ID\")","v":"Botellas de agua"},"2012-02-01",35,{"v":25,"d":"25.00 €"},848,{"v":1211,"d":"1,211"},{"$f":"tblVentas[[#This Row],[Unidades vendidas (minorista)]]+tblVentas[[#This Row],[Unidades vendidas (mayorista)]]","v":{"v":2059,"d":"2,059"}},{"$f":"tblVentas[[#This Row],[Unidades vendidas (minorista)]]*tblVentas[[#This Row],[Precio de venta minorista por unidad]]+tblVentas[[#This Row],[Unidades vendidas (mayorista)]]*tblVentas[[#This Row],[Precio de venta al mayor por unidad*]]","v":{"v":59955,"d":"59,955 €"}}]
[null,5,{"$f":"IFERROR(IF(tblVentas[[#This Row],[Identificador de producto]]<>\"\",VLOOKUP(tblVentas[Identificador de producto],tblProductos[[Identificador de producto]:[Nombre]],2,FALSE),\"\"),\"Unknown Product ID\")","v":"Pantalón corto"},"2012-02-01",41,{"v":38,"d":"38.00 €"},980,{"v":1330,"d":"1,330"},{"$f":"tblVentas[[#This Row],[Unidades vendidas (minorista)]]+tblVentas[[#This Row],[Unidades vendidas (mayorista)]]","v":{"v":2310,"d":"2,310"}},{"$f":"tblVentas[[#This Row],[Unidades vendidas (minorista)]]*tblVentas[[#This Row],[Precio de venta minorista por unidad]]+tblVentas[[#This Row],[Unidades vendidas (mayorista)]]*tblVentas[[#This Row],[Precio de venta al mayor por unidad*]]","v":{"v":90720,"d":"90,720 €"}}]
[null,1,{"$f":"IFERROR(IF(tblVentas[[#This Row],[Identificador de producto]]<>\"\",VLOOKUP(tblVentas[Identificador de producto],tblProductos[[Identificador de producto]:[Nombre]],2,FALSE),\"\"),\"Unknown Product ID\")","v":"Camisetas"},"2012-02-29",27,{"v":18,"d":"18.00 €"},533,{"v":1936,"d":"1,936"},{"$f":"tblVentas[[#This Row],[Unidades vendidas (minorista)]]+tblVentas[[#This Row],[Unidades vendidas (mayorista)]]","v":{"v":2469,"d":"2,469"}},{"$f":"tblVentas[[#This Row],[Unidades vendidas (minorista)]]*tblVentas[[#This Row],[Precio de venta minorista por unidad]]+tblVentas[[#This Row],[Unidades vendidas (mayorista)]]*tblVentas[[#This Row],[Precio de venta al mayor por unidad*]]","v":{"v":49239,"d":"49,239 €"}}]
[null,2,{"$f":"IFERROR(IF(tblVentas[[#This Row],[Identificador de producto]]<>\"\",VLOOKUP(tblVentas[Identificador de producto],tblProductos[[Identificador de producto]:[Nombre]],2,FALSE),\"\"),\"Unknown Product ID\")","v":"Sandalias"},"2012-02-29",38,{"v":28,"d":"28.00 €"},952,{"v":1512,"d":"1,512"},{"$f":"tblVentas[[#This Row],[Unidades vendidas (minorista)]]+tblVentas[[#This Row],[Unidades vendidas (mayorista)]]","v":{"v":2464,"d":"2,464"}},{"$f":"tblVentas[[#This Row],[Unidades vendidas (minorista)]]*tblVentas[[#This Row],[Precio de venta minorista por unidad]]+tblVentas[[#This Row],[Unidades vendidas (mayorista)]]*tblVentas[[#This Row],[Precio de venta al mayor por unidad*]]","v":{"v":78512,"d":"78,512 €"}}]
[null,3,{"$f":"IFERROR(IF(tblVentas[[#This Row],[Identificador de producto]]<>\"\",VLOOKUP(tblVentas[Identificador de producto],tblProductos[[Identificador de producto]:[Nombre]],2,FALSE),\"\"),\"Unknown Product ID\")","v":"Paraguas"},"2012-02-29",92,{"v":92,"d":"92.00 €"},956,{"v":1266,"d":"1,266"},{"$f":"tblVentas[[#This Row],[Unidades vendidas (minorista)]]+tblVentas[[#This Row],[Unidades vendidas (mayorista)]]","v":{"v":2222,"d":"2,222"}},{"$f":"tblVentas[[#This Row],[Unidades vendidas (minorista)]]*tblVentas[[#This Row],[Precio de venta minorista por unidad]]+tblVentas[[#This Row],[Unidades vendidas (mayorista)]]*tblVentas[[#This Row],[Precio de venta al mayor por unidad*]]","v":{"v":204424,"d":"204,424 €"}}]
[null,4,{"$f":"IFERROR(IF(tblVentas[[#This Row],[Identificador de producto]]<>\"\",VLOOKUP(tblVentas[Identificador de producto],tblProductos[[Identificador de producto]:[Nombre]],2,FALSE),\"\"),\"Unknown Product ID\")","v":"Botellas de agua"},"2012-02-29",43,{"v":36,"d":"36.00 €"},952,{"v":1390,"d":"1,390"},{"$f":"tblVentas[[#This Row],[Unidades vendidas (minorista)]]+tblVentas[[#This Row],[Unidades vendidas (mayorista)]]","v":{"v":2342,"d":"2,342"}},{"$f":"tblVentas[[#This Row],[Unidades vendidas (minorista)]]*tblVentas[[#This Row],[Precio de venta minorista por unidad]]+tblVentas[[#This Row],[Unidades vendidas (mayorista)]]*tblVentas[[#This Row],[Precio de venta al mayor por unidad*]]","v":{"v":90976,"d":"90,976 €"}}]
[null,5,{"$f":"IFERROR(IF(tblVentas[[#This Row],[Identificador de producto]]<>\"\",VLOOKUP(tblVentas[Identificador de producto],tblProductos[[Identificador de producto]:[Nombre]],2,FALSE),\"\"),\"Unknown Product ID\")","v":"Pantalón corto"},"2012-02-29",98,{"v":73,"d":"73.00 €"},530,{"v":1452,"d":"1,452"},{"$f":"tblVentas[[#This Row],[Unidades vendidas (minorista)]]+tblVentas[[#This Row],[Unidades vendidas (mayorista)]]","v":{"v":1982,"d":"1,982"}},{"$f":"tblVentas[[#This Row],[Unidades vendidas (minorista)]]*tblVentas[[#This Row],[Precio de venta minorista por unidad]]+tblVentas[[#This Row],[Unidades vendidas (mayorista)]]*tblVentas[[#This Row],[Precio de venta al mayor por unidad*]]","v":{"v":157936,"d":"157,936 €"}}]
[null,1,{"$f":"IFERROR(IF(tblVentas[[#This Row],[Identificador de producto]]<>\"\",VLOOKUP(tblVentas[Identificador de producto],tblProductos[[Identificador de producto]:[Nombre]],2,FALSE),\"\"),\"Unknown Product ID\")","v":"Camisetas"},"2012-03-31",38,{"v":28,"d":"28.00 €"},973,{"v":1415,"d":"1,415"},{"$f":"tblVentas[[#This Row],[Unidades vendidas (minorista)]]+tblVentas[[#This Row],[Unidades vendidas (mayorista)]]","v":{"v":2388,"d":"2,388"}},{"$f":"tblVentas[[#This Row],[Unidades vendidas (minorista)]]*tblVentas[[#This Row],[Precio de venta minorista por unidad]]+tblVentas[[#This Row],[Unidades vendidas (mayorista)]]*tblVentas[[#This Row],[Precio de venta al mayor por unidad*]]","v":{"v":76594,"d":"76,594 €"}}]
[null,2,{"$f":"IFERROR(IF(tblVentas[[#This Row],[Identificador de producto]]<>\"\",VLOOKUP(tblVentas[Identificador de producto],tblProductos[[Identificador de producto]:[Nombre]],2,FALSE),\"\"),\"Unknown Product ID\")","v":"Sandalias"},"2012-03-31",50,{"v":36,"d":"36.00 €"},672,{"v":1105,"d":"1,105"},{"$f":"tblVentas[[#This Row],[Unidades vendidas (minorista)]]+tblVentas[[#This Row],[Unidades vendidas (mayorista)]]","v":{"v":1777,"d":"1,777"}},{"$f":"tblVentas[[#This Row],[Unidades vendidas (minorista)]]*tblVentas[[#This Row],[Precio de venta minorista por unidad]]+tblVentas[[#This Row],[Unidades vendidas (mayorista)]]*tblVentas[[#This Row],[Precio de venta al mayor por unidad*]]","v":{"v":73380,"d":"73,380 €"}}]
[null,3,{"$f":"IFERROR(IF(tblVentas[[#This Row],[Identificador de producto]]<>\"\",VLOOKUP(tblVentas[Identificador de producto],tblProductos[[Identificador de producto]:[Nombre]],2,FALSE),\"\"),\"Unknown Product ID\")","v":"Paraguas"},"2012-03-31",24,{"v":23,"d":"23.00 €"},769,{"v":1629,"d":"1,629"},{"$f":"tblVentas[[#This Row],[Unidades vendidas (minorista)]]+tblVentas[[#This Row],[Unidades vendidas (mayorista)]]","v":{"v":2398,"d":"2,398"}},{"$f":"tblVentas[[#This Row],[Unidades vendidas (minorista)]]*tblVentas[[#This Row],[Precio de venta minorista por unidad]]+tblVentas[[#This Row],[Unidades vendidas (mayorista)]]*tblVentas[[#This Row],[Precio de venta al mayor por unidad*]]","v":{"v":55923,"d":"55,923 €"}}]
[null,4,{"$f":"IFERROR(IF(tblVentas[[#This Row],[Identificador de producto]]<>\"\",VLOOKUP(tblVentas[Identificador de producto],tblProductos[[Identificador de producto]:[Nombre]],2,FALSE),\"\"),\"Unknown Product ID\")","v":"Botellas de agua"},"2012-03-31",72,{"v":57,"d":"57.00 €"},985,{"v":1848,"d":"1,848"},{"$f":"tblVentas[[#This Row],[Unidades vendidas (minorista)]]+tblVentas[[#This Row],[Unidades vendidas (mayorista)]]","v":{"v":2833,"d":"2,833"}},{"$f":"tblVentas[[#This Row],[Unidades vendidas (minorista)]]*tblVentas[[#This Row],[Precio de venta minorista por unidad]]+tblVentas[[#This Row],[Unidades vendidas (mayorista)]]*tblVentas[[#This Row],[Precio de venta al mayor por unidad*]]","v":{"v":176256,"d":"176,256 €"}}]
[null,5,{"$f":"IFERROR(IF(tblVentas[[#This Row],[Identificador de producto]]<>\"\",VLOOKUP(tblVentas[Identificador de producto],tblProductos[[Identificador de producto]:[Nombre]],2,FALSE),\"\"),\"Unknown Product ID\")","v":"Pantalón corto"},"2012-03-31",85,{"v":43,"d":"43.00 €"},721,{"v":1426,"d":"1,426"},{"$f":"tblVentas[[#This Row],[Unidades vendidas (minorista)]]+tblVentas[[#This Row],[Unidades vendidas (mayorista)]]","v":{"v":2147,"d":"2,147"}},{"$f":"tblVentas[[#This Row],[Unidades vendidas (minorista)]]*tblVentas[[#This Row],[Precio de venta minorista por unidad]]+tblVentas[[#This Row],[Unidades vendidas (mayorista)]]*tblVentas[[#This Row],[Precio de venta al mayor por unidad*]]","v":{"v":122603,"d":"122,603 €"}}]
[null,1,{"$f":"IFERROR(IF(tblVentas[[#This Row],[Identificador de producto]]<>\"\",VLOOKUP(tblVentas[Identificador de producto],tblProductos[[Identificador de producto]:[Nombre]],2,FALSE),\"\"),\"Unknown Product ID\")","v":"Camisetas"},"2012-04-30",91,{"v":65,"d":"65.00 €"},603,{"v":1226,"d":"1,226"},{"$f":"tblVentas[[#This Row],[Unidades vendidas (minorista)]]+tblVentas[[#This Row],[Unidades vendidas (mayorista)]]","v":{"v":1829,"d":"1,829"}},{"$f":"tblVentas[[#This Row],[Unidades vendidas (minorista)]]*tblVentas[[#This Row],[Precio de venta minorista por unidad]]+tblVentas[[#This Row],[Unidades vendidas (mayorista)]]*tblVentas[[#This Row],[Precio de venta al mayor por unidad*]]","v":{"v":134563,"d":"134,563 €"}}]
[null,2,{"$f":"IFERROR(IF(tblVentas[[#This Row],[Identificador de producto]]<>\"\",VLOOKUP(tblVentas[Identificador de producto],tblProductos[[Identificador de producto]:[Nombre]],2,FALSE),\"\"),\"Unknown Product ID\")","v":"Sandalias"},"2012-04-30",91,{"v":55,"d":"55.00 €"},892,{"v":1823,"d":"1,823"},{"$f":"tblVentas[[#This Row],[Unidades vendidas (minorista)]]+tblVentas[[#This Row],[Unidades vendidas (mayorista)]]","v":{"v":2715,"d":"2,715"}},{"$f":"tblVentas[[#This Row],[Unidades vendidas (minorista)]]*tblVentas[[#This Row],[Precio de venta minorista por unidad]]+tblVentas[[#This Row],[Unidades vendidas (mayorista)]]*tblVentas[[#This Row],[Precio de venta al mayor por unidad*]]","v":{"v":181437,"d":"181,437 €"}}]
[null,3,{"$f":"IFERROR(IF(tblVentas[[#This Row],[Identificador de producto]]<>\"\",VLOOKUP(tblVentas[Identificador de producto],tblProductos[[Identificador de producto]:[Nombre]],2,FALSE),\"\"),\"Unknown Product ID\")","v":"Paraguas"},"2012-04-30",42,{"v":42,"d":"42.00 €"},611,{"v":1181,"d":"1,181"},{"$f":"tblVentas[[#This Row],[Unidades vendidas (minorista)]]+tblVentas[[#This Row],[Unidades vendidas (mayorista)]]","v":{"v":1792,"d":"1,792"}},{"$f":"tblVentas[[#This Row],[Unidades vendidas (minorista)]]*tblVentas[[#This Row],[Precio de venta minorista por unidad]]+tblVentas[[#This Row],[Unidades vendidas (mayorista)]]*tblVentas[[#This Row],[Precio de venta al mayor por unidad*]]","v":{"v":75264,"d":"75,264 €"}}]
[null,4,{"$f":"IFERROR(IF(tblVentas[[#This Row],[Identificador de producto]]<>\"\",VLOOKUP(tblVentas[Identificador de producto],tblProductos[[Identificador de producto]:[Nombre]],2,FALSE),\"\"),\"Unknown Product ID\")","v":"Botellas de agua"},"2012-04-30",85,{"v":43,"d":"43.00 €"},530,{"v":1039,"d":"1,039"},{"$f":"tblVentas[[#This Row],[Unidades vendidas (minorista)]]+tblVentas[[#This Row],[Unidades vendidas (mayorista)]]","v":{"v":1569,"d":"1,569"}},{"$f":"tblVentas[[#This Row],[Unidades vendidas (minorista)]]*tblVentas[[#This Row],[Precio de venta minorista por unidad]]+tblVentas[[#This Row],[Unidades vendidas (mayorista)]]*tblVentas[[#This Row],[Precio de venta al mayor por unidad*]]","v":{"v":89727,"d":"89,727 €"}}]
[null,5,{"$f":"IFERROR(IF(tblVentas[[#This Row],[Identificador de producto]]<>\"\",VLOOKUP(tblVentas[Identificador de producto],tblProductos[[Identificador de producto]:[Nombre]],2,FALSE),\"\"),\"Unknown Product ID\")","v":"Pantalón corto"},"2012-04-30",82,{"v":71,"d":"71.00 €"},716,{"v":1249,"d":"1,249"},{"$f":"tblVentas[[#This Row],[Unidades vendidas (minorista)]]+tblVentas[[#This Row],[Unidades vendidas (mayorista)]]","v":{"v":1965,"d":"1,965"}},{"$f":"tblVentas[[#This Row],[Unidades vendidas (minorista)]]*tblVentas[[#This Row],[Precio de venta minorista por unidad]]+tblVentas[[#This Row],[Unidades vendidas (mayorista)]]*tblVentas[[#This Row],[Precio de venta al mayor por unidad*]]","v":{"v":147391,"d":"147,391 €"}}]
[null,1,{"$f":"IFERROR(IF(tblVentas[[#This Row],[Identificador de producto]]<>\"\",VLOOKUP(tblVentas[Identificador de producto],tblProductos[[Identificador de producto]:[Nombre]],2,FALSE),\"\"),\"Unknown Product ID\")","v":"Camisetas"},"2012-05-14",34,{"v":31,"d":"31.00 €"},850,{"v":1548,"d":"1,548"},{"$f":"tblVentas[[#This Row],[Unidades vendidas (minorista)]]+tblVentas[[#This Row],[Unidades vendidas (mayorista)]]","v":{"v":2398,"d":"2,398"}},{"$f":"tblVentas[[#This Row],[Unidades vendidas (minorista)]]*tblVentas[[#This Row],[Precio de venta minorista por unidad]]+tblVentas[[#This Row],[Unidades vendidas (mayorista)]]*tblVentas[[#This Row],[Precio de venta al mayor por unidad*]]","v":{"v":76888,"d":"76,888 €"}}]
[null,2,{"$f":"IFERROR(IF(tblVentas[[#This Row],[Identificador de producto]]<>\"\",VLOOKUP(tblVentas[Identificador de producto],tblProductos[[Identificador de producto]:[Nombre]],2,FALSE),\"\"),\"Unknown Product ID\")","v":"Sandalias"},"2012-05-14",64,{"v":40,"d":"40.00 €"},876,{"v":1663,"d":"1,663"},{"$f":"tblVentas[[#This Row],[Unidades vendidas (minorista)]]+tblVentas[[#This Row],[Unidades vendidas (mayorista)]]","v":{"v":2539,"d":"2,539"}},{"$f":"tblVentas[[#This Row],[Unidades vendidas (minorista)]]*tblVentas[[#This Row],[Precio de venta minorista por unidad]]+tblVentas[[#This Row],[Unidades vendidas (mayorista)]]*tblVentas[[#This Row],[Precio de venta al mayor por unidad*]]","v":{"v":122584,"d":"122,584 €"}}]
[null,3,{"$f":"IFERROR(IF(tblVentas[[#This Row],[Identificador de producto]]<>\"\",VLOOKUP(tblVentas[Identificador de producto],tblProductos[[Identificador de producto]:[Nombre]],2,FALSE),\"\"),\"Unknown Product ID\")","v":"Paraguas"},"2012-05-14",33,{"v":30,"d":"30.00 €"},881,{"v":1149,"d":"1,149"},{"$f":"tblVentas[[#This Row],[Unidades vendidas (minorista)]]+tblVentas[[#This Row],[Unidades vendidas (mayorista)]]","v":{"v":2030,"d":"2,030"}},{"$f":"tblVentas[[#This Row],[Unidades vendidas (minorista)]]*tblVentas[[#This Row],[Precio de venta minorista por unidad]]+tblVentas[[#This Row],[Unidades vendidas (mayorista)]]*tblVentas[[#This Row],[Precio de venta al mayor por unidad*]]","v":{"v":63543,"d":"63,543 €"}}]
[null,4,{"$f":"IFERROR(IF(tblVentas[[#This Row],[Identificador de producto]]<>\"\",VLOOKUP(tblVentas[Identificador de producto],tblProductos[[Identificador de producto]:[Nombre]],2,FALSE),\"\"),\"Unknown Product ID\")","v":"Botellas de agua"},"2012-05-14",29,{"v":27,"d":"27.00 €"},802,{"v":1548,"d":"1,548"},{"$f":"tblVentas[[#This Row],[Unidades vendidas (minorista)]]+tblVentas[[#This Row],[Unidades vendidas (mayorista)]]","v":{"v":2350,"d":"2,350"}},{"$f":"tblVentas[[#This Row],[Unidades vendidas (minorista)]]*tblVentas[[#This Row],[Precio de venta minorista por unidad]]+tblVentas[[#This Row],[Unidades vendidas (mayorista)]]*tblVentas[[#This Row],[Precio de venta al mayor por unidad*]]","v":{"v":65054,"d":"65,054 €"}}]
[null,5,{"$f":"IFERROR(IF(tblVentas[[#This Row],[Identificador de producto]]<>\"\",VLOOKUP(tblVentas[Identificador de producto],tblProductos[[Identificador de producto]:[Nombre]],2,FALSE),\"\"),\"Unknown Product ID\")","v":"Pantalón corto"},"2013-12-11",24,{"v":15,"d":"15.00 €"},824,{"v":1994,"d":"1,994"},{"$f":"tblVentas[[#This Row],[Unidades vendidas (minorista)]]+tblVentas[[#This Row],[Unidades vendidas (mayorista)]]","v":{"v":2818,"d":"2,818"}},{"$f":"tblVentas[[#This Row],[Unidades vendidas (minorista)]]*tblVentas[[#This Row],[Precio de venta minorista por unidad]]+tblVentas[[#This Row],[Unidades vendidas (mayorista)]]*tblVentas[[#This Row],[Precio de venta al mayor por unidad*]]","v":{"v":49686,"d":"49,686 €"}}]

{"sheet":"Lista de precios","index":2,"n_rows":18,"n_cols":6,"rows_kept":18,"merged":[[15,1,15,5]]}
[null,"Lista de precios de productos"]
[]
[null,"Adventure Works"]
[null,"Calle de Arriba 345"]
[null,"Vitoria, AL 77503"]
[null,"Teléfono: +34 754 55 01 52"]
[null,"FAX: +34 754 55 01 53"]
[null,"www.adventure-works.com",{"$nulls":3},"Última actualización 15/8/2013"]
[]
[null,"Identificador de producto","Nombre","Descripción","Precio de venta minorista por unidad","Precio de venta al mayor por unidad*"]
[null,1,"Camisetas","Pase un verano de frescor con nuestras camisetas de 100% algodón prelavadas.",{"v":22,"d":"22.00 €"},{"v":15,"d":"15.00 €"}]
[null,2,"Sandalias","Póngase nuestras sandalias de sola de goma y ande por la arena tranquilamente sin quemarse.",{"v":10,"d":"10.00 €"},{"v":6,"d":"6.00 €"}]
[null,3,"Paraguas","Busque cobijo bajo nuestro gran parasol de playa que protege del 96% de todos los rayos UVA dañinos.",{"v":30,"d":"30.00 €"},{"v":20,"d":"20.00 €"}]
[null,4,"Botellas de agua","Hidrátese con agua en la temperatura exacta con nuestra botella de agua térmica.",{"v":7,"d":"7.00 €"},{"v":5,"d":"5.00 €"}]
[null,5,"Pantalón corto","Vaya directamente del agua al coche con nuestro pantalón corto de secado ultrarrápido.",{"v":15,"d":"15.00 €"},{"v":8,"d":"8.00 €"}]
[]
[{"$nulls":5},"Llámenos si hay algún producto que no aparece en la lista."]
[{"$nulls":5},"*Los precios de venta al mayor se aplican a cantidades superiores a 12 unidades."]

{"sheet":"Nivel de precios tabla dinámica","index":3,"n_rows":10,"n_cols":4,"rows_kept":10,"hidden":true,"merged":[[1,1,1,3]]}
[null,"Nivel de precios tabla dinámica"]
[null,"Esta hoja debe mantenerse oculta. Todas las modificaciones que se realicen a la tabla dinámica anterior pueden causar que los datos del Informe de ventas del producto sean incorrectos. "]
[null,"Producto seleccionado:",{"$f":"IF(LEN(B5),B5,\"Ninguna\")","v":"Sandalias"}]
[null,"Nombre de producto","Precio de venta minorista por unidad","Suma de Total de ventas (Número)"]
[null,"Sandalias",{"v":38,"d":"38 €"},2464]
[null,null,{"v":50,"d":"50 €"},1777]
[null,null,{"v":64,"d":"64 €"},2539]
[null,null,{"v":70,"d":"70 €"},1787]
[null,null,{"v":83,"d":"83 €"},1758]
[null,null,{"v":91,"d":"91 €"},2715]

{"sheet":"Tabla dinámica evolución ventas","index":4,"n_rows":9,"n_cols":3,"rows_kept":9,"hidden":true,"merged":[[1,1,1,3]]}
[null,"Tabla dinámica de evolución de las ventas"]
[null,"Esta hoja debe mantenerse oculta. Todas las modificaciones que se realicen a la tabla dinámica anterior pueden causar que los datos del Informe de ventas del producto sean incorrectos. "]
[null,"Suma de Total de ventas (Número)","Nombre de producto"]
[null,"Fecha de precio","Sandalias"]
[null,"ene",1787]
[null,"feb",4222]
[null,"mar",1777]
[null,"abr",2715]
[null,"may",2539]